fUST/lending_fUST_20250802
["ID","MTS","AMOUNT","RATE_DAILY","PERIOD"]
[376789596,1754124639000,-159.74677336,0.00023491,2]
[376789597,1754124639010,-528.38092283,0.00023491,2]
[376789598,1754124639019,-501.15845177,0.00023573,2]
[376789599,1754124639028,-292.68202547,0.00023598,2]
[376789600,1754124639038,-936.05886585,0.000236,2]
[376789601,1754124639047,-1941.82,0.000236,7]
[376789602,1754124639058,-940.8519304,0.00023641,2]
[376789603,1754124639067,-191.6112096,0.00023692,2]
[376789604,1754124639077,-430.4623945,0.00023741,2]
[376789605,1754124639086,-312.16666667,0.00023762,2]
[376789606,1754124639096,-200.0,0.00023807,15]
[376789607,1754124639106,-200.0,0.00023807,15]
[376789608,1754124639115,-200.0,0.00023807,15]
[376789609,1754124639124,-200.0,0.00023807,15]
[376789610,1754124639134,-200.0,0.00023807,15]
[376789611,1754124639143,-200.0,0.00023807,15]
[376789612,1754124639152,-200.0,0.00023807,15]
[376789613,1754124639162,-430.4623945,0.00023941,2]
[376789614,1754124639172,-430.4623945,0.00023941,2]
[376789615,1754124639182,-430.4623945,0.00023941,2]
[376789616,1754124639191,-250.0,0.00023978,2]
[376789617,1754124639201,-173.06748731,0.00024012,2]
[376789618,1754124639211,-365.33713124,0.00024152,2]
[376789619,1754124639220,-327.92053992,0.0002421,2]
[376789620,1754124639229,-265.47209019,0.00024283,2]
[376789621,1754124639239,-936.05886585,0.00024316,2]
[376789622,1754124639249,-160.0,0.00024351,3]
[376789623,1754124639259,-153.0,0.00024364,2]
[376789624,1754124639270,-153.0,0.00024364,2]
[376789625,1754124639281,-153.0,0.00024364,2]
[376789626,1754124639290,-153.0,0.00024364,2]
[376789627,1754124639300,-153.0,0.00024364,2]
[376789628,1754124639310,-153.0,0.00024364,2]
[376789629,1754124639461,-153.0,0.00024364,2]
[376789630,1754124639471,-153.0,0.00024364,2]
[376789631,1754124639482,-153.0,0.00024364,2]
[376789632,1754124639491,-153.0,0.00024364,2]
[376789633,1754124639500,-153.0,0.00024364,2]
[376789634,1754124639509,-153.0,0.00024364,2]
[376789635,1754124639518,-153.0,0.00024364,2]
[376789636,1754124639527,-153.0,0.00024364,2]
[376789637,1754124639536,-153.0,0.00024364,2]
[376789638,1754124639546,-153.0,0.00024364,2]
[376789639,1754124639555,-153.0,0.00024364,2]
[376789640,1754124639564,-153.0,0.00024364,2]
[376789641,1754124639573,-153.0,0.00024364,2]
[376789642,1754124639583,-153.0,0.00024364,2]
[376789643,1754124639592,-153.0,0.00024364,2]
[376789644,1754124639601,-153.0,0.00024364,2]
[376789645,1754124639610,-153.0,0.00024364,2]
[376789646,1754124639620,-153.0,0.00024364,2]
[376789647,1754124639629,-153.0,0.00024364,2]
[376789648,1754124639638,-153.0,0.00024364,2]
[376789649,1754124639648,-153.0,0.00024364,2]
[376789650,1754124639658,-153.0,0.00024364,2]
[376789651,1754124639667,-153.0,0.00024364,2]
[376789652,1754124639677,-153.0,0.00024364,2]
[376789653,1754124639686,-153.0,0.00024364,2]
[376789654,1754124639696,-153.0,0.00024364,2]
[376789655,1754124639706,-153.0,0.00024364,2]
[376789656,1754124639715,-153.0,0.00024364,2]
[376789657,1754124639725,-153.0,0.00024364,2]
[376789658,1754124639735,-153.0,0.00024364,2]
[376789659,1754124639744,-181.3928505,0.00024365,2]
[376789660,1754124639754,-1162.1646553,0.00024365,2]
[376789661,1754124639763,-165.2608351,0.00024365,2]
[376789662,1754124639773,-578.5960598,0.00024366,2]
[376789663,1754124639782,-153.0,0.00024366,2]
[376789664,1754124639792,-153.0,0.00024366,2]
[376789665,1754124639801,-162.5192371,0.00024366,2]
[376789666,1754124639811,-153.549557,0.00024366,2]
[376789667,1754124639820,-153.0,0.00024366,2]
[376789668,1754124639830,-1157.1921196,0.00024366,2]
[376789669,1754124639839,-153.0,0.00024366,2]
[376789670,1754124639848,-153.0,0.00024366,2]
[376789671,1754124639857,-153.0,0.0002437,2]
[376789672,1754124639867,-153.0,0.0002437,2]
[376789673,1754124639876,-153.0,0.0002437,2]
[376789674,1754124639886,-153.0,0.0002437,2]
[376789675,1754124639895,-153.0,0.0002437,2]
[376789676,1754124639904,-153.0,0.0002437,2]
[376789678,1754124639916,-153.0,0.0002437,2]
[376789679,1754124639925,-153.0,0.0002437,2]
[376789680,1754124639934,-153.0,0.0002437,2]
[376789681,1754124639943,-153.0,0.0002437,2]
[376789682,1754124639952,-153.0,0.0002437,2]
[376789683,1754124639961,-150.0,0.00024395,2]
[376789685,1754124639972,-151.0,0.000244,6]
[376789686,1754124639981,-7618.63116594,0.00024457,2]
[376789687,1754124639990,-714.73770644,0.00024457,2]
[376789688,1754124640000,-714.7377064,0.00024482,2]
[376789690,1754124640009,-151.0,0.000245,5]
[376789692,1754124640018,-151.0,0.000245,7]
[376789693,1754124640028,-151.0,0.000245,9]
[376789695,1754124640037,-714.7377064,0.00024507,2]
[376789696,1754124640046,-688.51879587,0.00024521,2]
[376789697,1754124640055,-446.39,0.0002453,3]
[376789698,1754124640065,-714.7377064,0.00024532,2]
[376789699,1754124640074,-542.05,0.00024535,3]
[376789700,1754124640083,-271.02,0.00024535,3]
[376789701,1754124640092,-813.09,0.00024535,3]
[376789702,1754124640101,-757.56,0.00024539,7]
[376789703,1754124640111,-1756.0,0.00024545,3]
[376789704,1754124640121,-325.0,0.00024545,3]
[376789705,1754124640131,-325.0,0.00024545,3]
[376789707,1754124640140,-325.0,0.00024545,3]
[376789709,1754124640150,-325.0,0.00024545,3]
[376789710,1754124640160,-325.0,0.00024545,3]
[376789711,1754124640170,-483.99177434,0.00024548,2]
[376789712,1754124640180,-500.0,0.00024548,2]
[376789713,1754124640190,-243.29531104,0.00024548,2]
[376789714,1754124640199,-500.0,0.00024548,2]
[376789715,1754124640208,-500.0,0.00024548,2]
[376789716,1754124640217,-339.80214237,0.00024548,2]
[376789717,1754124640228,-448.18789423,0.00024548,2]
[376789719,1754124640237,-500.0,0.00024548,2]
[376789721,1754124640247,-500.0,0.00024548,2]
[376789723,1754124640256,-500.0,0.00024548,2]
[376789725,1754124640266,-500.0,0.00024548,2]
[376789727,1754124640275,-500.0,0.00024548,2]
[376789729,1754124640284,-625.28188725,0.00024549,2]
[376789731,1754124640293,-500.0,0.00024549,2]
[376789733,1754124640303,-500.0,0.00024549,2]
[376789735,1754124640313,-500.0,0.00024549,2]
[376789737,1754124640323,-500.0,0.00024549,2]
[376789739,1754124640332,-500.0,0.00024549,2]
[376789741,1754124640341,-500.0,0.00024549,2]
[376789743,1754124640351,-500.0,0.00024549,2]
[376789745,1754124640360,-500.0,0.00024549,2]
[376789747,1754124640370,-500.0,0.00024549,2]
[376789749,1754124640379,-500.0,0.00024549,2]
[376789751,1754124640388,-500.0,0.00024549,2]
[376789753,1754124640398,-500.0,0.00024549,2]
[376789755,1754124640408,-500.0,0.00024549,2]
[376789757,1754124640417,-500.0,0.00024549,2]
[376789759,1754124640426,-500.0,0.00024549,2]
[376789761,1754124640436,-500.0,0.00024549,2]
[376789763,1754124640446,-500.0,0.00024549,2]
[376789765,1754124640455,-500.0,0.00024549,2]
[376789767,1754124640465,-500.0,0.00024549,2]
[376789769,1754124640474,-500.0,0.00024549,2]
[376789771,1754124640483,-500.0,0.00024549,2]
[376789773,1754124640492,-500.0,0.00024549,2]
[376789775,1754124640501,-500.0,0.00024549,2]
[376789777,1754124640510,-500.0,0.00024549,2]
[376789779,1754124640520,-500.0,0.00024549,2]
[376789781,1754124640529,-500.0,0.00024549,2]
[376789783,1754124640539,-218.56463451,0.00024549,2]
[376789785,1754124640548,-306131.28541784,0.0002455,2]
[376789787,1754124640557,-174.64,0.00024551,2]
[376789789,1754124640567,-170.4289651,0.00024557,2]
[376789791,1754124640577,-714.7377064,0.00024557,2]
[376789793,1754124640587,-500.0,0.00024573,2]
[376789795,1754124640598,-500.0,0.00024573,2]
[376789797,1754124640608,-3653.63,0.000246,7]
[376789799,1754124640618,-6836.17,0.000246,7]
[376789801,1754124640628,-151.0,0.000246,7]
[376789803,1754124640647,-151.0,0.000246,10]
[376789805,1754124640657,-151.0,0.000246,6]
[376789807,1754124640667,-151.0,0.000246,7]
[376789809,1754124640678,-151.0,0.000246,7]
[376789811,1754124640688,-151.0,0.000246,9]
[376789813,1754124640699,-312.16666667,0.000246,7]
[376789815,1754124640709,-757.56,0.00024639,7]
[376789817,1754124640719,-1000.0,0.00024656,2]
[376789819,1754124640729,-1000.0,0.00024656,2]
[376789821,1754124640740,-1000.0,0.00024656,2]
[376789823,1754124640750,-1000.0,0.00024656,2]
[376789825,1754124640759,-1000.0,0.00024656,2]
[376789827,1754124640769,-1000.0,0.00024656,2]
[376789829,1754124640778,-1000.0,0.00024656,2]
[376789831,1754124640787,-1000.0,0.00024656,2]
[376789833,1754124640797,-1000.0,0.00024656,2]
[376789835,1754124640807,-1000.0,0.00024656,2]
[376789837,1754124640817,-1000.0,0.00024656,2]
[376789839,1754124640826,-1000.0,0.00024656,2]
[376789841,1754124640837,-1000.0,0.00024656,2]
[376789843,1754124640847,-494.71952453,0.00024656,2]
[376789854,1754124640956,-505.28047547,0.00024656,2]
[376789856,1754124640965,-1000.0,0.00024656,2]
[376789858,1754124640975,-370.02584229,0.00024656,2]
[376789860,1754124640984,-789.17346789,0.00024656,2]
[376789862,1754124640994,-460.0,0.00024657,10]
[376789864,1754124641004,-512.87729279,0.00024657,10]
[376789866,1754124641013,-4556.5015329,0.00024657,10]
[376789868,1754124641024,-468.87213272,0.00024657,10]
[376789883,1754124641420,-113.07496429,0.00024657,10]
[376789886,1754124641433,-2741.72562866,0.00024657,10]
[376789888,1754124641445,-843.63590484,0.00024657,10]
[376790116,1754124643553,-791.2784889,0.00024657,10]
[376790122,1754124643606,-360.23002091,0.00024657,10]
[376790125,1754124643616,-387.25380337,0.00024657,10]
[376790128,1754124643627,-76.7869687,0.00024657,10]
[376790131,1754124643638,-312.29938086,0.00024657,10]
[376790388,1754124646330,-5000.0,0.0002441,2]
[376790390,1754124646340,-147.70061914,0.00024657,10]
[376790392,1754124646349,-516.20735126,0.00024657,10]
[376790394,1754124646359,-586.24302712,0.00024657,10]
[376790396,1754124646369,-460.0,0.00024657,10]
[376790398,1754124646378,-329.41534545,0.00024657,10]
[376790400,1754124646387,-505.32782001,0.00024657,10]
[376790402,1754124646397,-261.85676995,0.00024657,10]
[376790404,1754124646406,-500.0,0.00024657,7]
[376790406,1754124646416,-151.0,0.00024657,7]
[376790407,1754124646425,-151.0,0.00024657,7]
[376790409,1754124646434,-15.80311756,0.00024657,7]
[376790412,1754124646451,-136.3896314,0.00024657,7]
[376790414,1754124646460,-151.0,0.00024657,7]
[376790416,1754124646469,-151.53588168,0.00024657,2]
[376790418,1754124646479,-280.11655325,0.00024657,2]
[376790420,1754124646488,-151.32367249,0.00024657,2]
[376790422,1754124646498,-460.0,0.00024657,10]
[376790424,1754124646507,-460.0,0.00024657,10]
[376790426,1754124646517,-460.0,0.00024657,10]
[376790428,1754124646526,-460.0,0.00024657,10]
[376790430,1754124646536,-461.11175705,0.00024657,10]
[376790432,1754124646545,-460.0,0.00024657,10]
[376790434,1754124646554,-460.0,0.00024657,10]
[376790436,1754124646564,-258.54425413,0.00024657,10]
[376790454,1754124646732,-0.54695264,0.00024657,10]
[376798641,1754124772770,266.51366233,0.00019178,2]
[376798646,1754124961426,-228.62217661,0.00022226,2]
[376798647,1754124963499,-235.48106624,0.00022226,2]
[376798649,1754124989794,-260.93741489,0.00022226,2]
[376798650,1754125016979,-205.76354787,0.00022226,2]
[376798651,1754125022109,205.76354787,0.00022,2]
[376798653,1754125149462,-267.69345147,0.00022226,2]
[376798654,1754125151024,-288.07670266,0.00022226,2]
[376798656,1754125157317,-364.22984587,0.00022226,2]
[376798657,1754125157344,354.744719,0.00013699,2]
[376798658,1754125159371,-173.44851524,0.00020187,2]
[376798659,1754125161968,-181.29620376,0.00020187,2]
[376798660,1754125211650,-166.69837436,0.00020372,2]
[376798661,1754125215387,-174.88186717,0.00020372,2]
[376798662,1754125217107,-191.68210038,0.00020372,2]
[376798663,1754125220281,-386.73765809,0.00020372,2]
[376798664,1754125220311,-128.68563438,0.00021559,2]
[376798665,1754125221921,-55.21562819,0.00021559,2]
[376798666,1754125231403,200.0,0.00025992,120]
[376798667,1754125433018,-567.56437181,0.00021784,2]
[376798668,1754125437145,-217.00311841,0.00021784,2]
[376798669,1754125438725,-300.0,0.00021784,2]
[376798670,1754125441433,-605.86520452,0.00021784,2]
[376798671,1754125450765,-382.36602582,0.00021784,2]
[376798672,1754125453622,-219.69178911,0.00021784,2]
[376798673,1754125455731,-244.099502,0.00021784,2]
[376798674,1754125457239,-281.22107599,0.00021784,2]
[376798675,1754125459242,-220.65344655,0.00021784,2]
[376798676,1754125461829,-240.0,0.00021784,2]
[376798677,1754125463283,-240.0,0.00021784,2]
[376798678,1754125466394,-166.39,0.00021784,2]
[376798679,1754125469271,-276.12635379,0.00021784,2]
[376798680,1754125470737,-269.22589444,0.00021784,2]
[376798681,1754125473155,-235.7319346,0.00021784,2]
[376798682,1754125474640,-190.69805113,0.00021784,2]
[376798683,1754125479465,-300.0,0.00021784,2]
[376798684,1754125481405,-43.36323183,0.00021784,2]
[376798685,1754125493162,165.58,0.000231,29]
[376798687,1754125638169,-416.63676817,0.00020126,2]
[376798688,1754125640216,-188.88374278,0.00020126,2]
[376798692,1754125732601,-300.0,0.00021298,2]
[376798693,1754125735712,-181.62222343,0.00021298,2]
[376798694,1754125737315,-183.75905393,0.00021298,2]
[376798695,1754125741113,-156.66390663,0.00021298,2]
[376798696,1754125742637,-329.07075817,0.00021298,2]
[376798697,1754125744169,-260.26875273,0.00021298,2]
[376798698,1754125747007,-284.4957131,0.00021298,2]
[376798699,1754125755210,-576.32,0.00021298,2]
[376798700,1754125757539,-277.34613951,0.00021298,2]
[376798701,1754125761381,-349.0,0.00021298,2]
[376798702,1754125768245,-308.0,0.00021298,2]
[376798703,1754125770428,-1111.48364621,0.00021298,2]
[376798704,1754125772600,-262.83473183,0.00021298,2]
[376798705,1754125775766,-276.5677795,0.00021298,2]
[376798706,1754125778411,-384.68341842,0.00021298,2]
[376798707,1754125781034,-403.73398994,0.00021298,2]
[376798708,1754125783077,-820.64517045,0.00021298,2]
[376798709,1754125789675,-222.51635379,0.00021298,2]
[376798710,1754125793103,-178.33572694,0.00021298,2]
[376798711,1754125796325,-278.57361029,0.00021298,2]
[376798712,1754125799964,-318.56100595,0.00021298,2]
[376798713,1754125802725,-182.65386049,0.00021298,2]
[376798714,1754125808292,-209.0,0.00021298,2]
[376798715,1754125812557,-186.92016374,0.00021298,2]
[376798716,1754125815241,-281.85188486,0.00021298,2]
[376798717,1754125817215,-318.73404282,0.00021298,2]
[376798718,1754125819306,-609.95052969,0.00021298,2]
[376798719,1754125821669,-411.84635379,0.00021298,2]
[376798720,1754125823110,-295.18551523,0.00021298,2]
[376798721,1754125825708,-39.37566856,0.00021298,2]
[376798833,1754125838669,-5000.0,0.00022003,2]
[376798834,1754125838678,-1200.0,0.00022199,2]
[376798836,1754125838688,-178.5367691,0.000222,2]
[376798838,1754125838699,-300.0,0.00022224,2]
[376798840,1754125838709,-300.0,0.00022224,2]
[376798842,1754125838718,-300.0,0.00022224,2]
[376798844,1754125838728,-240.0,0.00022224,2]
[376798846,1754125838737,-300.0,0.00022224,2]
[376798848,1754125838746,-500.0,0.00022226,2]
[376798850,1754125838755,-500.0,0.00022226,2]
[376798852,1754125838764,-235.44187997,0.00022226,2]
[376798854,1754125838776,-264.55812003,0.00022226,2]
[376798856,1754125838786,-233.16182226,0.00022226,2]
[376798858,1754125838796,-500.0,0.000223,2]
[376798860,1754125838805,-161.4319093,0.0002235,2]
[376798862,1754125838815,-14020.0435946,0.0002239,2]
[376798864,1754125838824,-200.0,0.00022442,15]
[376798866,1754125838833,-200.0,0.00022442,15]
[376798868,1754125838843,-200.0,0.00022442,15]
[376798870,1754125838852,-200.0,0.00022442,15]
[376798872,1754125838861,-200.0,0.00022442,15]
[376798874,1754125838871,-489.38113484,0.00022542,2]
[376798876,1754125838880,-728.689504,0.00022642,2]
[376798878,1754125838889,-306.50210428,0.00022797,2]
[376798880,1754125838899,-1000.0,0.00022848,2]
[376798882,1754125838908,-489.3811348,0.00023203,2]
[376798884,1754125838919,-192.143769,0.00023236,2]
[376798886,1754125838928,-1500.0,0.00023396,2]
[376798888,1754125838937,-500.0,0.00023436,2]
[376798890,1754125838947,-238.589,0.00023436,3]
[376798892,1754125838956,-24900.0,0.00023502,2]
[376798894,1754125838964,-1000.0,0.00023504,2]
[376798896,1754125838973,-1000.0,0.00023504,2]
[376798898,1754125838983,-1000.0,0.00023504,2]
[376798899,1754125838992,-1000.0,0.00023504,2]
[376798901,1754125839001,-1000.0,0.00023504,2]
[376798903,1754125839011,-1000.0,0.00023504,2]
[376798905,1754125839023,-328.33,0.00023571,2]
[376798907,1754125839032,-527.02465094,0.00023573,2]
[376798909,1754125839040,-153.0,0.00023578,2]
[376798911,1754125839050,-153.0,0.00023778,2]
[376798913,1754125839062,-489.3811348,0.00023865,2]
[376798914,1754125839073,-306.0,0.00023878,2]
[376798915,1754125839083,-153.0,0.00023878,2]
[376798917,1754125839093,-153.0,0.00023878,2]
[376798918,1754125839102,-276.0,0.00024145,2]
[376798919,1754125839111,-420.0,0.00024145,2]
[376798921,1754125839121,-535.09265482,0.00024152,2]
[376798923,1754125839130,-1112.0,0.00024231,2]
[376798924,1754125839139,-153.0,0.00024313,2]
[376798925,1754125839148,-153.0,0.00024313,2]
[376798926,1754125839157,-153.0,0.00024313,2]
[376798927,1754125839172,-153.0,0.00024313,2]
[376798928,1754125839182,-153.0,0.00024313,2]
[376798929,1754125839191,-153.0,0.00024313,2]
[376798930,1754125839201,-153.0,0.00024313,2]
[376798931,1754125839211,-153.0,0.00024313,2]
[376798932,1754125839220,-153.0,0.00024313,2]
[376798933,1754125839230,-1000.0,0.00024365,2]
[376798934,1754125839240,-150.0,0.00024523,2]
[376798935,1754125839250,-489.3811348,0.00024526,2]
[376798936,1754125839260,-1000.0,0.00024534,2]
[376798937,1754125839270,-378.78,0.0002454,7]
[376798938,1754125839280,-1000.0,0.00024548,2]
[376798939,1754125839289,-1000.0,0.00024549,2]
[376798941,1754125839299,-1000.0,0.00024549,2]
[376798942,1754125839308,-1000.0,0.00024549,2]
[376798943,1754125839318,-1000.0,0.00024549,2]
[376798944,1754125839327,-494.71952453,0.00024549,2]
[376798945,1754125839337,-173.49061871,0.00024557,2]
[376798946,1754125839346,-178.6844266,0.00024557,2]
[376798947,1754125839356,-5079.08744396,0.00024557,2]
[376798948,1754125839367,-150.0,0.000246,2]
[376798950,1754125839376,-200.0,0.00024629,15]
[376798951,1754125839385,-200.0,0.00024629,15]
[376798952,1754125839395,-200.0,0.00024629,15]
[376798953,1754125839405,-200.0,0.00024629,15]
[376798954,1754125839421,-200.0,0.00024629,15]
[376798955,1754125839432,-200.0,0.00024629,15]
[376798956,1754125839443,-200.0,0.00024629,15]
[376798957,1754125839455,-180.28105091,0.0002463,2]
[376798958,1754125839465,-178.6844266,0.00024638,2]
[376798960,1754125839475,-378.78,0.0002464,7]
[376798961,1754125839485,-419.82,0.00024647,3]
[376798962,1754125839494,-209.91,0.00024647,3]
[376798963,1754125839503,-629.73,0.00024647,3]
[376798965,1754125839514,-437.69732108,0.00024656,2]
[376798966,1754125839525,-500.0,0.00024656,2]
[376798967,1754125839535,-500.0,0.00024656,2]
[376798969,1754125839545,-500.0,0.00024656,2]
[376798970,1754125839554,-500.0,0.00024656,2]
[376798972,1754125839564,-500.0,0.00024656,2]
[376798973,1754125839574,-500.0,0.00024656,2]
[376798974,1754125839588,-500.0,0.00024656,2]
[376798976,1754125839598,-500.0,0.00024656,2]
[376798977,1754125839607,-500.0,0.00024656,2]
[376798979,1754125839617,-500.0,0.00024656,2]
[376798980,1754125839626,-500.0,0.00024656,2]
[376798982,1754125839635,-438.6875438,0.00024656,2]
[376798983,1754125839645,-500.0,0.00024656,2]
[376798985,1754125839654,-500.0,0.00024656,2]
[376798986,1754125839666,-500.0,0.00024656,2]
[376798987,1754125839676,-500.0,0.00024656,2]
[376798989,1754125839685,-196.31272467,0.00024656,2]
[376798990,1754125839695,-500.0,0.00024656,2]
[376798991,1754125839705,-500.0,0.00024656,2]
[376798992,1754125839714,-500.0,0.00024656,2]
[376798993,1754125839725,-500.0,0.00024656,2]
[376798995,1754125839735,-1001.71709699,0.00024656,2]
[376798996,1754125839745,-207.09154789,0.00024656,2]
[376798998,1754125839755,-200.06310941,0.00024656,2]
[376798999,1754125839764,-153.20789448,0.00024656,2]
[376799000,1754125839773,-237.16526817,0.00024656,2]
[376799002,1754125839784,-231.70579442,0.00024656,2]
[376799003,1754125839795,-262.83473183,0.00024656,2]
[376799005,1754125839803,-481.93698633,0.00024656,2]
[376799006,1754125839813,-1513.44802698,0.00024657,2]
[376799008,1754125839822,-155.772803,0.00024657,7]
[376799009,1754125839832,-912.48805746,0.00024657,2]
[376799011,1754125839841,-500.0,0.00024657,10]
[376799012,1754125839851,-151.0,0.00024657,10]
[376799014,1754125839860,-151.0,0.00024657,10]
[376799015,1754125839869,-151.0,0.00024657,10]
[376799016,1754125839879,-500.0,0.00024657,10]
[376799018,1754125839889,-500.0,0.00024657,10]
[376799019,1754125839898,-152.54052731,0.00024657,10]
[376799021,1754125839907,-462.10500147,0.00024657,10]
[376799022,1754125839919,-460.0,0.00024657,10]
[376799024,1754125839929,-460.0,0.00024657,10]
[376799025,1754125839939,-461.3868985,0.00024657,10]
[376799026,1754125839949,-460.0,0.00024657,10]
[376799027,1754125839958,-460.65153151,0.00024657,7]
[376799028,1754125839967,-460.0,0.00024657,10]
[376799029,1754125839976,-460.99063525,0.00024657,10]
[376799031,1754125840098,-460.0,0.00024657,10]
[376799032,1754125840115,-538.13643913,0.00024657,10]
[376799033,1754125840125,-464.75239961,0.00024657,10]
[376799034,1754125840134,-493.13366083,0.00024657,10]
[376799035,1754125840143,-151.0,0.00024657,10]
[376799036,1754125840152,-460.0,0.00024657,10]
[376799037,1754125840163,-460.0,0.00024657,10]
[376799038,1754125840172,-460.0,0.00024657,10]
[376799039,1754125840182,-460.0,0.00024657,10]
[376799040,1754125840191,-460.0,0.00024657,10]
[376799041,1754125840200,-492.27767152,0.00024657,10]
[376799042,1754125840209,-460.0,0.00024657,10]
[376799043,1754125840219,-460.0,0.00024657,10]
[376799044,1754125840230,-460.0,0.00024657,10]
[376799045,1754125840239,-463.43954414,0.00024657,10]
[376799046,1754125840249,-399.29695924,0.00024657,10]
[376799047,1754125840259,-274.74678116,0.00024657,10]
[376799048,1754125840269,-500.0,0.00024657,10]
[376799049,1754125840278,-151.0,0.00024657,10]
[376799050,1754125840287,-460.0,0.00024657,10]
[376799051,1754125840297,-151.9661062,0.00024657,10]
[376799052,1754125840306,-460.0,0.00024657,10]
[376799053,1754125840317,-460.0,0.00024657,10]
[376799054,1754125840335,-460.0,0.00024657,10]
[376799055,1754125840345,-460.0,0.00024657,10]
[376799056,1754125840360,-460.0,0.00024657,10]
[376799057,1754125840369,-460.0,0.00024657,10]
[376799058,1754125840379,-460.0,0.00024657,10]
[376799059,1754125840389,-460.0,0.00024657,10]
[376799060,1754125840399,-460.0,0.00024657,10]
[376799061,1754125840410,-460.0,0.00024657,10]
[376799062,1754125840420,-285.6,0.00024657,10]
[376799063,1754125840430,-461.8497186,0.00024657,10]
[376799064,1754125840440,-460.0,0.00024657,10]
[376799065,1754125840449,-523.2504279,0.00024657,10]
[376799066,1754125840458,-460.0,0.00024657,10]
[376799067,1754125840468,-460.0,0.00024657,10]
[376799068,1754125840477,-460.0,0.00024657,10]
[376799069,1754125840486,-471.34394997,0.00024657,10]
[376799070,1754125840495,-1051.96,0.00024657,10]
[376799071,1754125840505,-1051.96,0.00024657,10]
[376799072,1754125840514,-1051.96,0.00024657,10]
[376799073,1754125840523,-1051.96,0.00024657,10]
[376799074,1754125840532,-1051.96,0.00024657,10]
[376799075,1754125840541,-1051.96,0.00024657,10]
[376799076,1754125840552,-1051.96,0.00024657,10]
[376799077,1754125840561,-1051.96,0.00024657,10]
[376799078,1754125840571,-1051.96,0.00024657,10]
[376799079,1754125840580,-1051.96,0.00024657,10]
[376799080,1754125840589,-1051.96,0.00024657,10]
[376799081,1754125840599,-1051.96,0.00024657,10]
[376799082,1754125840608,-1051.96,0.00024657,10]
[376799083,1754125840618,-1051.96,0.00024657,10]
[376799084,1754125840627,-1051.96,0.00024657,10]
[376799085,1754125840637,-1051.96,0.00024657,10]
[376799086,1754125840647,-1051.96,0.00024657,10]
[376799087,1754125840656,-1051.96,0.00024657,10]
[376799088,1754125840670,-1051.96,0.00024657,10]
[376799089,1754125840680,-1051.96,0.00024657,10]
[376799090,1754125840690,-1051.96,0.00024657,10]
[376799091,1754125840699,-1051.96,0.00024657,10]
[376799092,1754125840709,-1051.96,0.00024657,10]
[376799093,1754125840719,-1052.06734476,0.00024657,10]
[376799094,1754125840729,-460.0,0.00024657,10]
[376799095,1754125840738,-460.0,0.00024657,10]
[376799096,1754125840747,-460.0,0.00024657,10]
[376799097,1754125840756,-481.91582867,0.00024657,10]
[376799098,1754125840767,-462.16405029,0.00024657,10]
[376799099,1754125840776,-460.0,0.00024657,10]
[376799100,1754125840785,-460.0,0.00024657,10]
[376799101,1754125840795,-460.0,0.00024657,10]
[376799102,1754125840805,-460.0,0.00024657,10]
[376799103,1754125840814,-544.95503723,0.00024657,10]
[376799104,1754125840824,-151.0,0.00024657,10]
[376799105,1754125840833,-460.0,0.00024657,10]
[376799106,1754125840847,-460.0,0.00024657,10]